Cogmind - Beta 13 @@@ ROGUE MODE // 2024.08.04 @ 13:00:51 Player: Norb Result: Destroyed by as-37130 with Assembled Blade Performance ------------- Evolutions (0) 0 Regions Visited (2) 400 Robots Destroyed (7) 35 Value Destroyed (174) 174 Prototype IDs (2) 40 Alien Tech Used (0) 0 Bonus (0) 0 TOTAL SCORE: 649 Bonus ------- None Cogmind --------- Core Integrity 0/250 Matter 300/300 Energy 121/125 System Corruption 0% Temperature Cool (2) Movement Walking (120) Location -10/Mines Parts ------- > --- POWER (1) -------- Light Ion Engine > --- PROPULSION (2) --- Aluminum Leg Carbon-fiber Leg > --- UTILITY (2) ------ Improved Terrain Scanner Terrain Scan Processor > --- WEAPON (2) ------- Welding Torch > --- INVENTORY (5) ---- Aluminum Leg Small Storage Unit Terrain Scanner Improved Terrain Scanner Peak State ------------ > --- POWER ------------ Light Angular Momentum Engine > --- PROPULSION ------- Aluminum Leg Carbon-fiber Leg > --- UTILITY ---------- Improved Terrain Scanner Improved Terrain Scanner > --- WEAPON ----------- Assault Rifle > --- INVENTORY -------- Aluminum Leg Aluminum Leg Small Storage Unit Terrain Scanner [Rating: 16] Favorites ----------- Power Ion Engine Engine Ion Engine Propulsion Aluminum Leg Leg Aluminum Leg Utility Improved Terrain Scanner Device Improved Terrain Scanner Storage Small Storage Unit Processor Signal Interpreter Weapon Assault Rifle Ballistic Gun Assault Rifle Special Weapon Welding Torch Build | -11 -10 -10 ------- Run | Yrd Mat Min Slots Evolved . | . . . Power . | . . . Propulsion . | . . . Utility . | . . . Weapon . | . . . Parts Attached 27 | 7 2 18 Power 5 | 2 . 3 Engine 5 | 2 . 3 Core . | . . . Reactor . | . . . Propulsion 6 | 2 . 4 Treads . | . . . Leg 6 | 2 . 4 Wheel . | . . . Hover . | . . . Flight . | . . . Utility 12 | 1 2 9 Device 8 | . 2 6 Storage 1 | 1 . . Processor 3 | . . 3 Hackware . | . . . Protection . | . . . Artifact . | . . . Weapon 4 | 2 . 2 Energy Gun . | . . . Energy Cannon . | . . . Ballistic Gun 3 | 2 . 1 Ballistic Cannon . | . . . Launcher . | . . . Special Weapon 1 | . . 1 Impact Weapon . | . . . Slashing Weapon . | . . . Piercing Weapon . | . . . Special Melee Weapon . | . . . Unidentified Prototypes . | . . . Parts Lost 6 | . . 6 Power 2 | . . 2 Propulsion . | . . . Utility 2 | . . 2 Weapon 2 | . . 2 Highest Loss Streak 4 | . . 4 To Critical Strikes 1 | . . 1 Average Slot Usage (%) 92 | . 99 88 Engine 13 | . 14 13 Leg 28 | . 28 28 Device 15 | . 13 16 Storage 4 | . 14 . Processor 7 | . . 11 Ballistic Gun 21 | . 28 17 Naked Turns . | . . . Heaviest Build 15 | 14 15 15 Greatest Support 25 | 20 20 25 Greatest Overweight (x) 2 | 2 . . Average Overweight (x) . | . . . Largest Inventory Capacity 8 | 8 8 8 Average Capacity 6 | 6 8 5 Most Carried 8 | 6 8 8 Average Carried 5 | 2 7 4 Final Capacity 8 | 8 8 5 Final Carried 8 | 6 8 4 Class Distribution -------------------- 65% | Mutant 34% | Scavenger-Mutant Dominant Class ---------------- Mutant | -10/Materials Scavenger-Mutant | -10/Mines Resources | -11 -10 -10 ----------- Run | Yrd Mat Min Matter Collected 706 | 124 260 322 Remotely . | . . . Salvage Created 295 | . 164 131 Parts 13 | . 12 1 Haulers Intercepted . | . . . Recyclers Shooed . | . . . Parts Field Recycled . | . . . Retrieved Matter . | . . . Parts Self-Destructed . | . . . Prevented . | . . . Kills | -11 -10 -10 ------- Run | Yrd Mat Min Combat Hostiles Destroyed 12 | . 5 7 Guns 12 | . 5 7 Classes Destroyed 4 | . 3 1 Watcher 1 | . 1 . Swarmer 3 | . 3 . Grunt 3 | . 2 1 Assembled 6 | . . 6 Best Kill Streak 3 | . 3 2 Combat Bots Only 3 | . 3 2 Max Kills in Single Turn 1 | . 1 1 Gunslinging . | . . . Exploded . | . . . Melee . | . . . Uniques/NPCs Destroyed . | . . . Combat | -11 -10 -10 -------- Run | Yrd Mat Min Hostile Shots Fired 78 | . 26 52 Missed 21 | . 7 14 Damage Taken 937 | . 235 702 Core 274 | . 53 221 Absorbed by Shields . | . . . Core Remaining (%) 100 | 100 . . Volleys Fired 53 | . 19 34 Largest 2 | . 2 2 Hottest 40 | . 40 40 Shots Fired 87 | . 38 49 Gun 87 | . 38 49 Cannon . | . . . Launcher . | . . . Special . | . . . Kinetic 87 | . 38 49 Thermal . | . . . Explosive . | . . . Electromagnetic . | . . . Robot Hit Streak 8 | . 8 2 Robot Miss Streak 4 | . 3 4 Penetration Max . | . . . Secondary Targets 1 | . 1 . Max Gunslinging Chain 1 | . 1 . Shots Hit Robots 41 | . 22 19 Core Hits 29 | . 11 18 Critical Kills . | . . . Critical Parts Destroyed 1 | . . 1 Critical Strikes 1 | . . 1 Destroy 1 | . . 1 Melee Attacks . | . . . Impact . | . . . Slashing . | . . . Piercing . | . . . Sneak Attacks . | . . . Combat Hostiles . | . . . Follow-up Attacks . | . . . Damage Inflicted 528 | . 283 245 Guns 513 | . 283 230 Cannons . | . . . Explosions . | . . . Melee . | . . . Ramming 15 | . . 15 Kinetic 513 | . 283 230 Thermal . | . . . Explosive . | . . . Electromagnetic . | . . . Impact . | . . . Slashing . | . . . Piercing . | . . . Highest Corruption . | . . . Average Corruption . | . . . Corruption Purged . | . . . Corruption Blocked . | . . . Overload Shots . | . . . Overflow Damage . | . . . Projectiles . | . . . Explosions . | . . . Melee . | . . . Knockbacks . | . . . Impact . | . . . Kinetic . | . . . Secondary . | . . . Self-Inflicted Damage . | . . . Shots . | . . . Rammed . | . . . Targets Rammed 8 | . . 8 Kicked 8 | . . 8 Crushed . | . . . Highest Temperature 12 | . . 12 Average Temperature 8 | . . 8 Received Heat Transfer 185 | . 96 89 Siege Activations . | . . . Robots Corrupted . | . . . Combat Hostiles . | . . . Parts Fried . | . . . Impact Corruptions 1 | . . 1 Robots Melted . | . . . Combat Hostiles . | . . . Parts Melted . | . . . Heat Transferred . | . . . Parts Sabotaged . | . . . Parts Stolen . | . . . Parts Stripped . | . . . Power Chain Reactions . | . . . Alert | -11 -10 -10 ------- Run | Yrd Mat Min Peak Influence 161 | . 161 59 Initial 14 | . . 14 Average 34 | . 80 14 Maximum Alert Level . | . . . Low Security (%) 100 | 100 100 100 Level 1 . | . . . Level 2 . | . . . Level 3 . | . . . Level 4 . | . . . Level 5 . | . . . High Security . | . . . Max Security . | . . . Squads Dispatched . | . . . Investigation . | . . . Extermination . | . . . Reinforcement . | . . . Assault . | . . . Garrison . | . . . Intercept . | . . . Searches Triggered . | . . . Construction Impeded . | . . . Haulers Reinforced . | . . . Active Scanning Responses . | . . . Cargo Convoy Interrupts . | . . . Stealth | -11 -10 -10 --------- Run | Yrd Mat Min Distress Signals 1 | . . 1 Communications Jammed . | . . . Distress Signals . | . . . Times Spotted 26 | . 9 17 Peak Tracking Total 9 | . 3 9 Tactical Retreats 2 | . . 2 Traps | -11 -10 -10 ------- Run | Yrd Mat Min Traps Triggered . | . . . Indirectly . | . . . Trap Hack Attempts . | . . . Triggered . | . . . Disarmed . | . . . Reprogrammed . | . . . Reused . | . . . Traps Extracted . | . . . Installed . | . . . Triggered . | . . . Machines | -11 -10 -10 ---------- Run | Yrd Mat Min Machines Disabled . | . . . Max in Single Turn . | . . . Machines Repaired . | . . . Machines Dismantled . | . . . Machines Sabotaged . | . . . Overloaded Fab Kills . | . . . Hacking | -11 -10 -10 --------- Run | Yrd Mat Min Machines Accessed 5 | . 5 . Terminals 3 | . 3 . Fabricators . | . . . Repair Stations . | . . . Recycling Units 2 | . 2 . Scanalyzers . | . . . Garrison Access . | . . . Total Hacks 10 | . 10 . Successful 6 | . 6 . Failed 4 | . 4 . Catastrophic . | . . . Database Lockouts . | . . . Manual . | . . . Terminals 7 | . 7 . Fabricators . | . . . Repair Stations . | . . . Recycling Units 3 | . 3 . Scanalyzers . | . . . Garrison Access . | . . . Terminal Hacks 3 | . 3 . Prototype ID Bank 1 | . 1 . Branch Access Points 1 | . 1 . Zone Layout 1 | . 1 . Fabricator Hacks . | . . . Repair Station Hacks . | . . . Recycling Unit Hacks 3 | . 3 . Report Inventory 2 | . 2 . Retrieve Components 1 | . 1 . Scanalyzer . | . . . Garrison Access Hacks . | . . . Unauthorized Hacks . | . . . Terminals . | . . . Fabricators . | . . . Repair Stations . | . . . Recycling Units . | . . . Scanalyzers . | . . . Garrison Access . | . . . Data Cores Recovered . | . . . Used . | . . . Hacking Detections 5 | . 5 . Full Trace Events . | . . . Feedback Events . | . . . Feedback Blocked . | . . . Robot Schematics Acquired . | . . . Robots Built . | . . . Authchips . | . . . Time . | . . . Total Robot Build Rating . | . . . Part Schematics Acquired . | . . . Parts Built . | . . . Authchips . | . . . Time . | . . . Total Part Build Rating . | . . . Parts Repaired . | . . . Time . | . . . Parts Recycled . | . . . Recycled Matter . | . . . Retrieved Matter . | . . . Retrieved Components 4 | . 4 . Parts Scanalyzed . | . . . Part Schematics Acquired . | . . . Parts Damaged . | . . . Bothacking | -11 -10 -10 ------------ Run | Yrd Mat Min Used RIF Installer . | . . . Robots Hacked . | . . . Non-combat . | . . . Combat . | . . . Robot Hacks Applied . | . . . Relay Couplers Released . | . . . Fabnet Peak Effective % . | . . . Robots Rewired . | . . . Allies Hacked . | . . . Hacks Repelled . | . . . Allies | -11 -10 -10 -------- Run | Yrd Mat Min Total Allies . | . . . Largest Group . | . . . Highest-Rated Group . | . . . Highest-Rated Ally . | . . . Total Orders . | . . . Ally Attacks . | . . . Total Damage . | . . . Kills . | . . . Allies Corrupted . | . . . Allies Melted . | . . . Intel | -11 -10 -10 ------- Run | Yrd Mat Min Robot Analysis Total . | . . . Derelict Logs Recovered . | . . . Drone Launches . | . . . Drone Recoveries . | . . . Exploration | -11 -10 -10 ------------- Run | Yrd Mat Min Turns Passed 1594 | 99 500 995 Spaces Moved 824 | 69 344 411 Core 19 | 19 . . Treads . | . . . Legs 805 | 50 344 411 Wheels . | . . . Hover . | . . . Flight . | . . . Fastest Speed 50 | 50 120 120 Average Speed 119 | 115 120 120 Slowest Speed 150 | 150 120 120 Overloaded Moves . | . . . Propulsion Burnouts . | . . . Robots Hopped . | . . . Cave-ins Triggered . | . . . Exploration Rate (%) 31 | 3 44 48 Regions Visited 2 Branch Regions 1 Pre-discovered Areas . | . . . Known Exits Taken 1 | . 1 . Unknown Exits Taken 1 | 1 . . Scrap Searched . | . . . Spaces Dug . | . . . Terrain Destroyed . | . . . Melee . | . . . Projectile . | . . . AOE . | . . . Terrain Rammed . | . . . Walls Destroyed . | . . . Machines Disabled . | . . . Actions | -11 -10 -10 --------- Run | Yrd Mat Min Total 1347 | 87 397 863 Wait 393 | . 20 373 Move 822 | 68 343 411 Hop . | . . . Pick Up 30 | 12 8 10 Fast Attach . | . . . Attach 13 | 6 1 6 Detach 1 | . . 1 Swap 14 | 1 1 12 Drop 13 | . 5 8 Fire 53 | . 19 34 Melee . | . . . Ram . | . . . Kick 8 | . . 8 Crush . | . . . Escape Stasis . | . . . Rewire . | . . . Trap . | . . . Miscellaneous . | . . . Route ------- -11/Scrapyard -10/Materials -10/Mines History --------- Turn | Location | Event 23 | -11/Scrapyard | Discovered new exit (range 14) 100 | -11/Scrapyard | Entered Materials 281 | -10/Materials | Identified exit to Mines 318 | -10/Materials | Build established: Mutant 600 | -10/Materials | Entered Mines 609 | -10/Mines | Met a Derelict bent on vengeance 776 | -10/Mines | Assembled infested the area 802 | -10/Mines | Core integrity fell below 50% 1330 | -10/Mines | Build established: Scavenger-Mutant 1530 | -10/Mines | Core integrity fell below 20% 1558 | -10/Mines | Lost 4 parts (2p1u1w) 1595 | -10/Mines | Destroyed by as-37130 with Assembled Blade Last Messages --------------- 01525_ Kicked as-37130. 01527_ Lgt. Ion Engine destroyed. 01528_ Kicked as-37130. 01529_ Destroyed Asb. Hover Unit. 01529_ as-37130 system corrupted by crushing effect. 01530_ Kicked as-37130 out of the way. 01534_ Acquired Terrain Scan Processor. 01536_ Acquired 6 matter. 01537_ Acquired 4 matter. 01541_ as-37130 sneak attacks. 01541_ K-01 Serf destroyed. 01547_ Dropped Aluminum Leg. 01549_ Acquired Lgt. Ion Engine. 01549_ as-37130 sneak attacks. 01549_ R-06 Scavenger destroyed. 01558_ Acquired 19 matter. 01559_ Acquired 1 matter. 01570_ Acquired Welding Torch. 01580_ Acquired 10 matter. Map ----- +----------------------------------------------------+ | | | | | | | | | | | | | | | | | | | | | | | | | ????????????????##?##??###?#?###?####?##??##??#?## | | ????????????????####?#?#??##??##?###?##?????#?#### | | ???????????#??#???#####?###?##?###???#?#???##?###? | | ????????????###??#??#??#?####?#####?##??#??####### | | ??????????#???#???#??##### ##### ####?###?####### | | ??????????#???#?###??## # ?? ####?####?#### | | ????????#?#??#???##### #####? ###########? | | ??????????????????#??# #######% ## #####?### | | ??????????#??????##??# # % =%! # ## ######### | | ?????????#???#####??## ## *###### ############### | | ???????????????##???## ##!u###### %=!! | | ???????????#??####### !#% ################# | | ?????????????### % =%=!== # ?# # # ######## | | ??????????#?####?### [*=%@%### ############ ##### | | ???????????? ? ? #?##=%=a=*### ######## | | ???????????????####?# ##*%= #?############# ##### | | ?????????????????##?# ###### ##??####?###### #### | | ??????????#?#?#?##??# ##?#?#%###?################# | | ??????????????#?#?# $ #??###?#??# ????############ | | ????????? ?????###? ###?#????#?#?? ?? #### #?##### | | ????????????#?#?#?#???#??#?# ? ? ######?##### | | ?????????????#????#?###?#?####?? ?? ?#####?###### | | ?????????? ??? ???? #??#????#?#? ?#? #?###?####?# | | ????????????#?#????####?#?#?#?#?#??? #?########## | | ?????????? ????#??#??#?##?###?###### #####??####? | | ????????????#?????#????#?????## #??#??###### | | ????????????????????????##??## [! #???##?##### | | ?????????????????? ?????#??#?#/= ###??#?#?##### | | ?????????????????? ?????????## !####??? ##?###### | | ??????????????????????????### ##?????? #???##?# | | ?????????????????????????## #??????? #?????## | | ?????????????????????????# | #??????? #??????? | | ?????????????????????????# #??????? ##??#??? | | ?????????????????????????## ##?????## ##????? | | ??????????????????????????## #??##### #????? | | ???????????????????????????## #?## ###### | | ????????????????????????????# ### ! | | ????????????????????????????# ! ### ####### | +----------------------------------------------------+ Best States ------------- Heat Dissipation 35 Energy Generation 18 Energy Capacity 250 Matter Stores 300 Matter Capacity 300 Sight Range 16 Robot Scan Range 14 Terrain Scan Range 16 Terrain Scan Density 85 Evasion (%) 55 Item Schematics ----------------- None Robot Schematics ------------------ None Fabricated ------------ Nothing Alien Tech Used ----------------- None Achievements -------------- None Challenges ------------ None Game ------ Seed FactoryCentriumInsulator Manual? 0 Play Time 00:20:07 Cumulative 9.9 hours Start 2024.08.04 @ 12:35:51 End 2024.08.04 @ 13:00:51 Sessions 1 Manual Loads 0 Difficulty Rogue Special Mode None Game No. 13 Rogue 13 Adventurer 0 Explorer 0 Win Type - Total 0 Types 0/0/0/0/0/0/0/0/0 Lore% 14 Gallery% 14 Achievement% 15 Wizard Run 0 Options --------- Layout 1 ASCII 0 Keyboard 1 Movement Arrows Keybinds 0 Fullscreen 2 Font 24/Terminus Map View 50x35 Zoom Use 0% Tactical HUD 1 Map Filters NONE Filters NONE Steam 1 RUN: eaeaf664-3869-426c-8264-f56f165f2ba2